[Event "Titled Tuesday Blitz April 18 Early 2023"]
[White "Shuvalov, Evgenij"]
[Black "Kohler, Aran"]
[WhiteFideId "4187237"]
[BlackFideId "1002856"]
[WhiteElo "2080"]
[BlackElo "2250"]
[Result "1-0"]
[Round "04"]
[TimeControl "180+2"]
[Date "2023.04.18"]
[WhiteClock "0:00:34"]
[BlackClock "0:00:09"]

1. d4 {[%clk 0:03:00]}  Nf6 {[%clk 0:02:58]} 2. Bg5 {[%clk 0:02:59]}  c5 {[%clk 0:02:56]} 3. d5 {[%clk 0:02:57]}  Qb6 {[%clk 0:02:57]} 4. Nc3 {[%clk 0:02:34]}  Qxb2 {[%clk 0:02:57]} 5. Bd2 {[%clk 0:02:34]}  Qb6 {[%clk 0:02:55]} 6. e4 {[%clk 0:02:34]}  e5 {[%clk 0:02:54]} 7. Nf3 {[%clk 0:02:22]}  d6 {[%clk 0:02:52]} 8. Rb1 {[%clk 0:02:19]}  Qd8 {[%clk 0:02:52]} 9. a4 {[%clk 0:02:17]}  Be7 {[%clk 0:02:48]} 10. Bd3 {[%clk 0:02:16]}  O-O {[%clk 0:02:49]} 11. O-O {[%clk 0:02:16]}  Bg4 {[%clk 0:02:41]} 12. Rxb7 {[%clk 0:02:13]}  Nbd7 {[%clk 0:02:37]} 13. h3 {[%clk 0:02:09]}  Bxf3 {[%clk 0:02:36]} 14. Qxf3 {[%clk 0:02:10]}  Qc8 {[%clk 0:02:34]} 15. Rfb1 {[%clk 0:02:02]}  Rb8 {[%clk 0:02:23]} 16. Ba6 {[%clk 0:01:58]}  Rxb7 {[%clk 0:02:21]} 17. Rxb7 {[%clk 0:01:56]}  Qa8 {[%clk 0:02:17]} 18. Qe2 {[%clk 0:01:51]}  Rb8 {[%clk 0:02:09]} 19. Qb5 {[%clk 0:01:44]}  Rxb7 {[%clk 0:02:07]} 20. Bxb7 {[%clk 0:01:45]}  Qb8 {[%clk 0:02:07]} 21. Bc6 {[%clk 0:01:41]}  Qxb5 {[%clk 0:02:04]} 22. axb5 {[%clk 0:01:36]}  Nb6 {[%clk 0:02:01]} 23. f3 {[%clk 0:01:35]}  h6 {[%clk 0:01:44]} 24. Kf2 {[%clk 0:01:33]}  g5 {[%clk 0:01:43]} 25. Nd1 {[%clk 0:01:26]}  Bd8 {[%clk 0:01:42]} 26. Nb2 {[%clk 0:01:24]}  c4 {[%clk 0:01:26]} 27. Nd1 {[%clk 0:01:14]}  Bc7 {[%clk 0:01:24]} 28. Ne3 {[%clk 0:01:14]}  Nfd7 {[%clk 0:01:10]} 29. Nf5 {[%clk 0:01:12]}  Kh7 {[%clk 0:01:08]} 30. Bb4 {[%clk 0:01:06]}  Nc5 {[%clk 0:01:00]} 31. Bxc5 {[%clk 0:01:05]}  dxc5 {[%clk 0:01:01]} 32. d6 {[%clk 0:01:05]}  Bd8 {[%clk 0:01:01]} 33. Ke2 {[%clk 0:00:59]}  Kg6 {[%clk 0:00:58]} 34. g4 {[%clk 0:00:56]}  Kf6 {[%clk 0:00:58]} 35. Nxh6 {[%clk 0:00:54]}  Ke6 {[%clk 0:00:58]} 36. Nf5 {[%clk 0:00:54]}  f6 {[%clk 0:00:54]} 37. Kf2 {[%clk 0:00:52]}  c3 {[%clk 0:00:50]} 38. Ke2 {[%clk 0:00:51]}  Nc4 {[%clk 0:00:50]} 39. Bd5+ {[%clk 0:00:49]}  Kd7 {[%clk 0:00:49]} 40. Bxc4 {[%clk 0:00:50]}  Bb6 {[%clk 0:00:44]} 41. Kd3 {[%clk 0:00:49]}  Ba5 {[%clk 0:00:42]} 42. Bd5 {[%clk 0:00:49]}  Bb4 {[%clk 0:00:36]} 43. Kc4 {[%clk 0:00:49]}  Kc8 {[%clk 0:00:17]} 44. Bc6 {[%clk 0:00:47]}  Kd8 {[%clk 0:00:16]} 45. Kd5 {[%clk 0:00:45]}  Ba3 {[%clk 0:00:11]} 46. Ne3 {[%clk 0:00:43]}  c4 {[%clk 0:00:11]} 47. Nxc4 {[%clk 0:00:42]}  Bxd6 {[%clk 0:00:08]} 48. Kxd6 {[%clk 0:00:41]}  a5 {[%clk 0:00:09]} 49. b6 {[%clk 0:00:39]}  Kc8 {[%clk 0:00:09]} 50. Nxa5 {[%clk 0:00:37]}  Kb8 {[%clk 0:00:09]} 51. Nb3 {[%clk 0:00:34]} 1-0


[Site "https://www.chess.com"]

[Event "Titled Tuesday Blitz April 18 Early 2023"]
[White "Gatterer, Florian"]
[Black "hsd2016"]
[WhiteFideId "811688"]
[WhiteElo "2221"]
[BlackElo "2160"]
[Result "0-1"]
[Round "04"]
[TimeControl "180+2"]
[Date "2023.04.18"]
[WhiteClock "0:00:01"]
[BlackClock "0:00:10"]

1. b3 {[%clk 0:02:54]}  e5 {[%clk 0:02:59]} 2. Bb2 {[%clk 0:02:51]}  d6 {[%clk 0:02:59]} 3. d4 {[%clk 0:02:50]}  exd4 {[%clk 0:02:57]} 4. Qxd4 {[%clk 0:02:50]}  Nf6 {[%clk 0:02:57]} 5. Nc3 {[%clk 0:02:46]}  Nc6 {[%clk 0:02:56]} 6. Qd2 {[%clk 0:02:46]}  Be7 {[%clk 0:02:55]} 7. e4 {[%clk 0:02:46]}  Be6 {[%clk 0:02:53]} 8. O-O-O {[%clk 0:02:45]}  Ng4 {[%clk 0:02:50]} 9. h3 {[%clk 0:02:27]}  Nge5 {[%clk 0:02:24]} 10. f4 {[%clk 0:02:17]}  Ng6 {[%clk 0:02:22]} 11. Kb1 {[%clk 0:02:12]}  Bd7 {[%clk 0:01:40]} 12. Nf3 {[%clk 0:02:12]}  a5 {[%clk 0:01:37]} 13. a4 {[%clk 0:02:10]}  h5 {[%clk 0:01:31]} 14. Nd5 {[%clk 0:02:04]}  Kf8 {[%clk 0:01:28]} 15. Bb5 {[%clk 0:01:51]}  Nb4 {[%clk 0:01:20]} 16. Bxd7 {[%clk 0:01:44]}  Qxd7 {[%clk 0:01:20]} 17. Nxe7 {[%clk 0:01:20]}  Qxe7 {[%clk 0:01:15]} 18. Rhe1 {[%clk 0:01:20]}  Nc6 {[%clk 0:01:07]} 19. Qc3 {[%clk 0:01:14]}  f6 {[%clk 0:01:05]} 20. Qd2 {[%clk 0:01:05]}  Re8 {[%clk 0:01:04]} 21. g3 {[%clk 0:01:03]}  Qd7 {[%clk 0:00:38]} 22. h4 {[%clk 0:00:57]}  Qg4 {[%clk 0:00:33]} 23. Qf2 {[%clk 0:00:56]}  Kg8 {[%clk 0:00:20]} 24. Nh2 {[%clk 0:00:54]}  Qh3 {[%clk 0:00:19]} 25. Nf3 {[%clk 0:00:47]}  Qg4 {[%clk 0:00:18]} 26. f5 {[%clk 0:00:31]}  Nge5 {[%clk 0:00:18]} 27. Nh2 {[%clk 0:00:31]}  Qh3 {[%clk 0:00:18]} 28. Rh1 {[%clk 0:00:31]}  Ng4 {[%clk 0:00:17]} 29. Nxg4 {[%clk 0:00:31]}  Qxg4 {[%clk 0:00:18]} 30. Rde1 {[%clk 0:00:22]}  Rxe4 {[%clk 0:00:19]} 31. Rxe4 {[%clk 0:00:22]}  Qxe4 {[%clk 0:00:19]} 32. Re1 {[%clk 0:00:22]}  Qd5 {[%clk 0:00:19]} 33. Qe2 {[%clk 0:00:15]}  Kf7 {[%clk 0:00:15]} 34. Bc3 {[%clk 0:00:11]}  Qxf5 {[%clk 0:00:15]} 35. Qc4+ {[%clk 0:00:10]}  d5 {[%clk 0:00:14]} 36. Qc5 {[%clk 0:00:09]}  Qd7 {[%clk 0:00:14]} 37. Bxa5 {[%clk 0:00:08]}  b6 {[%clk 0:00:15]} 38. Bxb6 {[%clk 0:00:08]}  cxb6 {[%clk 0:00:15]} 39. Qxb6 {[%clk 0:00:09]}  Rb8 {[%clk 0:00:15]} 40. Qc5 {[%clk 0:00:08]}  Ne5 {[%clk 0:00:16]} 41. Rd1 {[%clk 0:00:06]}  Rd8 {[%clk 0:00:13]} 42. a5 {[%clk 0:00:05]}  Ke6 {[%clk 0:00:11]} 43. a6 {[%clk 0:00:05]}  Rc8 {[%clk 0:00:12]} 44. Qd4 {[%clk 0:00:02]}  Qc6 {[%clk 0:00:11]} 45. Rd2 {[%clk 0:00:03]}  Rd8 {[%clk 0:00:10]} 46. a7 {[%clk 0:00:02]}  Qa6 {[%clk 0:00:10]} 47. Kb2 {[%clk 0:00:02]}  Rd7 {[%clk 0:00:10]} 48. g4 {[%clk 0:00:02]}  hxg4 {[%clk 0:00:10]} 49. h5 {[%clk 0:00:01]}  Qxa7 {[%clk 0:00:10]} 0-1


[Site "https://www.chess.com"]

[Event "Titled Tuesday Blitz April 18 Early 2023"]
[White "Yanayt, Eugene"]
[Black "Itkis, Boris"]
[WhiteFideId "2020165"]
[BlackFideId "1209167"]
[WhiteElo "2083"]
[BlackElo "2216"]
[Result "0-1"]
[Round "04"]
[TimeControl "180+2"]
[Date "2023.04.18"]
[WhiteClock "0:00:29"]
[BlackClock "0:00:11"]

1. Nf3 {[%clk 0:02:59]}  Nf6 {[%clk 0:02:59]} 2. c4 {[%clk 0:02:59]}  c5 {[%clk 0:02:57]} 3. d4 {[%clk 0:02:58]}  cxd4 {[%clk 0:02:58]} 4. Nxd4 {[%clk 0:02:58]}  Nc6 {[%clk 0:02:58]} 5. Nc3 {[%clk 0:02:59]}  g6 {[%clk 0:02:57]} 6. h4 {[%clk 0:02:59]}  Bg7 {[%clk 0:02:53]} 7. g3 {[%clk 0:02:59]}  O-O {[%clk 0:02:53]} 8. Bh3 {[%clk 0:02:57]}  d6 {[%clk 0:02:48]} 9. Be3 {[%clk 0:02:38]}  Bxh3 {[%clk 0:02:46]} 10. Rxh3 {[%clk 0:02:37]}  Rc8 {[%clk 0:02:42]} 11. f3 {[%clk 0:02:35]}  d5 {[%clk 0:02:17]} 12. c5 {[%clk 0:02:30]}  e5 {[%clk 0:02:13]} 13. Nxc6 {[%clk 0:02:27]}  bxc6 {[%clk 0:02:09]} 14. Bf2 {[%clk 0:02:25]}  Rb8 {[%clk 0:01:57]} 15. Qd2 {[%clk 0:02:15]}  d4 {[%clk 0:01:30]} 16. Ne4 {[%clk 0:02:04]}  Nxe4 {[%clk 0:01:27]} 17. fxe4 {[%clk 0:02:04]}  Qd7 {[%clk 0:01:15]} 18. Rh2 {[%clk 0:01:58]}  f5 {[%clk 0:01:15]} 19. h5 {[%clk 0:01:55]}  fxe4 {[%clk 0:01:09]} 20. Qg5 {[%clk 0:01:40]}  Qf5 {[%clk 0:01:06]} 21. Qe7 {[%clk 0:01:32]}  e3 {[%clk 0:01:02]} 22. hxg6 {[%clk 0:01:25]}  hxg6 {[%clk 0:00:49]} 23. O-O-O {[%clk 0:01:14]}  exf2 {[%clk 0:00:46]} 24. Rf1 {[%clk 0:01:13]}  d3 {[%clk 0:00:31]} 25. exd3 {[%clk 0:01:00]}  Qxd3 {[%clk 0:00:25]} 26. Qe6+ {[%clk 0:00:55]}  Rf7 {[%clk 0:00:25]} 27. Rhxf2 {[%clk 0:00:55]}  Bh6+ {[%clk 0:00:22]} 28. Rf4 {[%clk 0:00:51]}  exf4 {[%clk 0:00:22]} 29. Rxf4 {[%clk 0:00:48]}  Bxf4+ {[%clk 0:00:22]} 30. gxf4 {[%clk 0:00:49]}  Rf8 {[%clk 0:00:19]} 31. b4 {[%clk 0:00:44]}  Kg7 {[%clk 0:00:18]} 32. Qe5+ {[%clk 0:00:43]}  Rf6 {[%clk 0:00:19]} 33. Kb2 {[%clk 0:00:42]}  Qf5 {[%clk 0:00:16]} 34. Qe7+ {[%clk 0:00:40]}  R8f7 {[%clk 0:00:17]} 35. Qe3 {[%clk 0:00:39]}  Qxf4 {[%clk 0:00:16]} 36. Qc3 {[%clk 0:00:39]}  Rd7 {[%clk 0:00:15]} 37. Kb3 {[%clk 0:00:36]}  Qd4 {[%clk 0:00:14]} 38. Qc2 {[%clk 0:00:34]}  Rf3+ {[%clk 0:00:13]} 39. Ka4 {[%clk 0:00:35]}  Rf4 {[%clk 0:00:13]} 40. a3 {[%clk 0:00:34]}  a5 {[%clk 0:00:12]} 41. Kxa5 {[%clk 0:00:34]}  Rff7 {[%clk 0:00:12]} 42. Ka4 {[%clk 0:00:33]}  Qe3 {[%clk 0:00:11]} 43. Qb2+ {[%clk 0:00:31]}  Kg8 {[%clk 0:00:11]} 44. Ka5 {[%clk 0:00:28]}  Ra7+ {[%clk 0:00:11]} 45. Kb6 {[%clk 0:00:28]}  Rfb7+ {[%clk 0:00:11]} 46. Kxc6 {[%clk 0:00:29]}  Qe6# {[%clk 0:00:11]} 0-1


[Site "https://www.chess.com"]

[Event "Titled Tuesday Blitz April 18 Early 2023"]
[White "Wimalasuriya, Kasun M."]
[Black "Valle Maytin, Luis Enrique"]
[WhiteFideId "9906789"]
[BlackFideId "3503666"]
[WhiteElo "2153"]
[BlackElo "2225"]
[Result "0-1"]
[Round "04"]
[TimeControl "180+2"]
[Date "2023.04.18"]
[WhiteClock "0:02:10"]
[BlackClock "0:02:19"]

1. d4 {[%clk 0:03:00]}  d5 {[%clk 0:03:00]} 2. c4 {[%clk 0:03:00]}  e6 {[%clk 0:03:00]} 3. Nc3 {[%clk 0:03:00]}  Nf6 {[%clk 0:03:00]} 4. Bg5 {[%clk 0:03:00]}  Be7 {[%clk 0:03:01]} 5. e3 {[%clk 0:03:00]}  O-O {[%clk 0:03:00]} 6. cxd5 {[%clk 0:02:58]}  exd5 {[%clk 0:03:00]} 7. Bd3 {[%clk 0:02:58]}  h6 {[%clk 0:02:59]} 8. Bf4 {[%clk 0:02:58]}  c6 {[%clk 0:02:59]} 9. Nge2 {[%clk 0:02:58]}  Nbd7 {[%clk 0:02:57]} 10. Rc1 {[%clk 0:02:56]}  Re8 {[%clk 0:02:56]} 11. O-O {[%clk 0:02:56]}  Nf8 {[%clk 0:02:54]} 12. h3 {[%clk 0:02:56]}  Ne6 {[%clk 0:02:48]} 13. Bh2 {[%clk 0:02:53]}  g6 {[%clk 0:02:47]} 14. Qc2 {[%clk 0:02:52]}  Ng7 {[%clk 0:02:45]} 15. g4 {[%clk 0:02:49]}  h5 {[%clk 0:02:41]} 16. f3 {[%clk 0:02:48]}  Bd6 {[%clk 0:02:36]} 17. Qd2 {[%clk 0:02:35]}  Bxh2+ {[%clk 0:02:34]} 18. Kxh2 {[%clk 0:02:36]}  Qd6+ {[%clk 0:02:34]} 19. Kg2 {[%clk 0:02:34]}  hxg4 {[%clk 0:02:31]} 20. hxg4 {[%clk 0:02:30]}  Bxg4 {[%clk 0:02:30]} 21. fxg4 {[%clk 0:02:28]}  Nxg4 {[%clk 0:02:30]} 22. Rh1 {[%clk 0:02:10]}  Nxe3+ {[%clk 0:02:19]} 0-1


[Site "https://www.chess.com"]

[Event "Titled Tuesday Blitz April 18 Early 2023"]
[White "Sandholm, Klas"]
[Black "Havanecz, Bianka"]
[WhiteFideId "510203"]
[BlackFideId "704814"]
[WhiteElo "2122"]
[BlackElo "2309"]
[Result "1/2-1/2"]
[Round "04"]
[TimeControl "180+2"]
[Date "2023.04.18"]
[WhiteClock "0:00:08"]
[BlackClock "0:00:19"]

1. e4 {[%clk 0:03:00]}  c5 {[%clk 0:02:59]} 2. a3 {[%clk 0:03:00]}  g6 {[%clk 0:02:58]} 3. b4 {[%clk 0:03:00]}  Bg7 {[%clk 0:02:58]} 4. Nc3 {[%clk 0:03:00]}  d6 {[%clk 0:02:56]} 5. Nf3 {[%clk 0:02:59]}  cxb4 {[%clk 0:02:52]} 6. axb4 {[%clk 0:03:00]}  Nf6 {[%clk 0:02:52]} 7. Rb1 {[%clk 0:02:59]}  O-O {[%clk 0:02:51]} 8. Be2 {[%clk 0:02:59]}  a6 {[%clk 0:02:49]} 9. b5 {[%clk 0:02:58]}  axb5 {[%clk 0:02:49]} 10. Bxb5 {[%clk 0:02:55]}  Nc6 {[%clk 0:02:49]} 11. O-O {[%clk 0:02:55]}  Bg4 {[%clk 0:02:48]} 12. Be2 {[%clk 0:02:53]}  Qc8 {[%clk 0:02:40]} 13. Bb2 {[%clk 0:02:37]}  Nd7 {[%clk 0:02:32]} 14. Nd5 {[%clk 0:02:36]}  Bxf3 {[%clk 0:02:27]} 15. Bxf3 {[%clk 0:02:33]}  e6 {[%clk 0:02:27]} 16. Ne3 {[%clk 0:02:24]}  Nd4 {[%clk 0:02:20]} 17. c3 {[%clk 0:02:15]}  Nxf3+ {[%clk 0:02:18]} 18. Qxf3 {[%clk 0:02:16]}  Ne5 {[%clk 0:02:16]} 19. Qe2 {[%clk 0:02:16]}  Nc6 {[%clk 0:02:10]} 20. d4 {[%clk 0:02:15]}  Qc7 {[%clk 0:02:04]} 21. Ra1 {[%clk 0:02:05]}  Rfc8 {[%clk 0:02:01]} 22. Rxa8 {[%clk 0:02:00]}  Rxa8 {[%clk 0:02:01]} 23. Ra1 {[%clk 0:02:01]}  Rxa1+ {[%clk 0:02:00]} 24. Bxa1 {[%clk 0:02:02]}  Qa5 {[%clk 0:01:59]} 25. Qb2 {[%clk 0:01:52]}  b5 {[%clk 0:01:55]} 26. Qb1 {[%clk 0:01:45]}  b4 {[%clk 0:01:46]} 27. cxb4 {[%clk 0:01:36]}  Qxb4 {[%clk 0:01:45]} 28. Qxb4 {[%clk 0:01:31]}  Nxb4 {[%clk 0:01:46]} 29. Kf1 {[%clk 0:01:21]}  d5 {[%clk 0:01:38]} 30. f3 {[%clk 0:01:07]}  Bh6 {[%clk 0:01:31]} 31. Ng4 {[%clk 0:00:47]}  Bg7 {[%clk 0:01:27]} 32. Bc3 {[%clk 0:00:32]}  Nc6 {[%clk 0:01:19]} 33. e5 {[%clk 0:00:29]}  h5 {[%clk 0:01:16]} 34. Nf2 {[%clk 0:00:26]}  Bh6 {[%clk 0:01:15]} 35. Ke2 {[%clk 0:00:26]}  Kg7 {[%clk 0:01:09]} 36. Kd3 {[%clk 0:00:25]}  Bf4 {[%clk 0:01:05]} 37. g3 {[%clk 0:00:24]}  Bc1 {[%clk 0:01:05]} 38. Nh3 {[%clk 0:00:18]}  Ba3 {[%clk 0:00:56]} 39. f4 {[%clk 0:00:18]}  Be7 {[%clk 0:00:53]} 40. Ng1 {[%clk 0:00:17]}  g5 {[%clk 0:00:52]} 41. Nf3 {[%clk 0:00:17]}  gxf4 {[%clk 0:00:51]} 42. gxf4 {[%clk 0:00:18]}  Kg6 {[%clk 0:00:51]} 43. h3 {[%clk 0:00:13]}  Kf5 {[%clk 0:00:51]} 44. Bd2 {[%clk 0:00:14]}  f6 {[%clk 0:00:48]} 45. exf6 {[%clk 0:00:13]}  Bxf6 {[%clk 0:00:48]} 46. Ne5 {[%clk 0:00:13]}  Bxe5 {[%clk 0:00:48]} 47. fxe5 {[%clk 0:00:14]}  Ne7 {[%clk 0:00:47]} 48. Ke3 {[%clk 0:00:13]}  Ng6 {[%clk 0:00:47]} 49. Kf3 {[%clk 0:00:13]}  Nf8 {[%clk 0:00:40]} 50. Be3 {[%clk 0:00:12]}  Nd7 {[%clk 0:00:36]} 51. Bf2 {[%clk 0:00:12]}  Nb6 {[%clk 0:00:35]} 52. Be3 {[%clk 0:00:12]}  Nc4 {[%clk 0:00:35]} 53. Bf2 {[%clk 0:00:13]}  Nd2+ {[%clk 0:00:35]} 54. Ke2 {[%clk 0:00:12]}  Ne4 {[%clk 0:00:33]} 55. Be3 {[%clk 0:00:11]}  Ng5 {[%clk 0:00:28]} 56. Bxg5 {[%clk 0:00:10]}  Kxg5 {[%clk 0:00:28]} 57. Kf3 {[%clk 0:00:10]}  Kh4 {[%clk 0:00:25]} 58. Kg2 {[%clk 0:00:10]}  Kg5 {[%clk 0:00:25]} 59. Kf3 {[%clk 0:00:10]}  Kf5 {[%clk 0:00:24]} 60. Ke3 {[%clk 0:00:08]}  Kg5 {[%clk 0:00:19]} 61. Kf3 {[%clk 0:00:08]} 1/2-1/2


[Site "https://www.chess.com"]

[Event "Titled Tuesday Blitz April 18 Early 2023"]
[White "Kiseljova, Marya"]
[Black "Torres Dominguez, David"]
[WhiteFideId "4155009"]
[BlackFideId "2220857"]
[WhiteElo "1851"]
[BlackElo "1999"]
[Result "0-1"]
[Round "04"]
[TimeControl "180+2"]
[Date "2023.04.18"]
[WhiteClock "0:00:05"]
[BlackClock "0:00:06"]

1. d4 {[%clk 0:03:00]}  e5 {[%clk 0:02:56]} 2. dxe5 {[%clk 0:02:59]}  d6 {[%clk 0:02:56]} 3. exd6 {[%clk 0:02:59]}  Bxd6 {[%clk 0:02:57]} 4. Nf3 {[%clk 0:02:56]}  Bg4 {[%clk 0:02:57]} 5. Nbd2 {[%clk 0:02:38]}  Nc6 {[%clk 0:02:57]} 6. e3 {[%clk 0:02:38]}  Qe7 {[%clk 0:02:55]} 7. Be2 {[%clk 0:02:38]}  O-O-O {[%clk 0:02:54]} 8. c3 {[%clk 0:02:29]}  Nf6 {[%clk 0:02:50]} 9. Qa4 {[%clk 0:02:25]}  Kb8 {[%clk 0:02:43]} 10. b4 {[%clk 0:02:16]}  h5 {[%clk 0:02:37]} 11. b5 {[%clk 0:02:16]}  Ne5 {[%clk 0:02:34]} 12. h3 {[%clk 0:01:58]}  Bf5 {[%clk 0:02:09]} 13. Nd4 {[%clk 0:01:36]}  Nd3+ {[%clk 0:02:03]} 14. Kf1 {[%clk 0:01:34]}  Bg6 {[%clk 0:02:03]} 15. Qb3 {[%clk 0:00:57]}  Nc5 {[%clk 0:01:58]} 16. Qb2 {[%clk 0:00:53]}  Ka8 {[%clk 0:01:55]} 17. a4 {[%clk 0:00:51]}  Rhe8 {[%clk 0:01:52]} 18. a5 {[%clk 0:00:47]}  Nd3 {[%clk 0:01:51]} 19. Qb3 {[%clk 0:00:39]}  Nxf2 {[%clk 0:01:47]} 20. a6 {[%clk 0:00:25]}  b6 {[%clk 0:01:35]} 21. Bf3+ {[%clk 0:00:20]}  N2e4 {[%clk 0:01:31]} 22. Nxe4 {[%clk 0:00:19]}  Bxe4 {[%clk 0:01:29]} 23. Bxe4+ {[%clk 0:00:17]}  Nxe4 {[%clk 0:01:28]} 24. Qd5+ {[%clk 0:00:16]}  c6 {[%clk 0:01:22]} 25. Nxc6 {[%clk 0:00:16]}  Qf6+ {[%clk 0:01:06]} 26. Ke2 {[%clk 0:00:16]}  Qf2+ {[%clk 0:01:01]} 27. Kd3 {[%clk 0:00:13]}  Nc5+ {[%clk 0:00:28]} 28. Kc4 {[%clk 0:00:14]}  Re4+ {[%clk 0:00:23]} 29. Nd4+ {[%clk 0:00:13]}  Kb8 {[%clk 0:00:19]} 30. Ba3 {[%clk 0:00:09]}  Rxd4+ {[%clk 0:00:19]} 31. exd4 {[%clk 0:00:07]}  Qe2+ {[%clk 0:00:14]} 32. Kb4 {[%clk 0:00:07]}  Qc2 {[%clk 0:00:08]} 33. dxc5 {[%clk 0:00:05]}  Bxc5+ {[%clk 0:00:07]} 34. Qxc5 {[%clk 0:00:04]}  bxc5+ {[%clk 0:00:05]} 35. Kxc5 {[%clk 0:00:05]}  Qxc3# {[%clk 0:00:06]} 0-1


[Site "https://www.chess.com"]

[Event "Titled Tuesday Blitz April 18 Early 2023"]
[White "Coelho, Ramyres Santana"]
[Black "brm72"]
[WhiteFideId "2120690"]
[WhiteElo "1888"]
[BlackElo "2645"]
[Result "0-1"]
[Round "04"]
[TimeControl "180+2"]
[Date "2023.04.18"]
[WhiteClock "0:00:21"]
[BlackClock "0:00:15"]

1. e4 {[%clk 0:02:59]}  e6 {[%clk 0:02:55]} 2. d4 {[%clk 0:02:58]}  d5 {[%clk 0:02:55]} 3. Nc3 {[%clk 0:02:58]}  Bb4 {[%clk 0:02:54]} 4. e5 {[%clk 0:02:58]}  Ne7 {[%clk 0:02:53]} 5. a3 {[%clk 0:02:57]}  Bxc3+ {[%clk 0:02:53]} 6. bxc3 {[%clk 0:02:58]}  c5 {[%clk 0:02:53]} 7. Qg4 {[%clk 0:02:58]}  Qc7 {[%clk 0:02:51]} 8. Qxg7 {[%clk 0:02:46]}  Rg8 {[%clk 0:02:50]} 9. Qxh7 {[%clk 0:02:46]}  cxd4 {[%clk 0:02:50]} 10. Bd2 {[%clk 0:02:44]}  Qxe5+ {[%clk 0:02:45]} 11. Ne2 {[%clk 0:02:43]}  Nbc6 {[%clk 0:02:39]} 12. Qd3 {[%clk 0:02:38]}  dxc3 {[%clk 0:02:33]} 13. Bxc3 {[%clk 0:02:38]}  Qc7 {[%clk 0:02:31]} 14. g3 {[%clk 0:02:36]}  e5 {[%clk 0:02:30]} 15. Bg2 {[%clk 0:02:36]}  d4 {[%clk 0:02:28]} 16. Bd2 {[%clk 0:02:34]}  Be6 {[%clk 0:02:14]} 17. O-O {[%clk 0:02:34]}  O-O-O {[%clk 0:02:14]} 18. Rfb1 {[%clk 0:02:32]}  f5 {[%clk 0:02:09]} 19. Qb5 {[%clk 0:02:05]}  Bd5 {[%clk 0:02:06]} 20. Bxd5 {[%clk 0:02:01]}  Rxd5 {[%clk 0:02:07]} 21. Qb2 {[%clk 0:01:59]}  d3 {[%clk 0:02:01]} 22. cxd3 {[%clk 0:01:55]}  Rxd3 {[%clk 0:02:01]} 23. Bb4 {[%clk 0:01:50]}  Rgd8 {[%clk 0:01:47]} 24. Bxe7 {[%clk 0:01:44]}  Qxe7 {[%clk 0:01:48]} 25. Rc1 {[%clk 0:01:38]}  e4 {[%clk 0:01:30]} 26. Rab1 {[%clk 0:01:36]}  e3 {[%clk 0:01:27]} 27. Rxc6+ {[%clk 0:01:28]}  Kb8 {[%clk 0:01:09]} 28. Re6 {[%clk 0:01:09]}  Rd1+ {[%clk 0:01:00]} 29. Kg2 {[%clk 0:01:02]}  Rxb1 {[%clk 0:01:00]} 30. Rxe7 {[%clk 0:00:46]}  Rxb2 {[%clk 0:00:57]} 31. Rxe3 {[%clk 0:00:47]}  Rdd2 {[%clk 0:00:56]} 32. Kf3 {[%clk 0:00:46]}  b5 {[%clk 0:00:55]} 33. h4 {[%clk 0:00:46]}  a5 {[%clk 0:00:52]} 34. h5 {[%clk 0:00:46]}  Rd6 {[%clk 0:00:52]} 35. Nf4 {[%clk 0:00:42]}  Rc2 {[%clk 0:00:46]} 36. Re5 {[%clk 0:00:42]}  b4 {[%clk 0:00:43]} 37. axb4 {[%clk 0:00:41]}  a4 {[%clk 0:00:43]} 38. Rxf5 {[%clk 0:00:40]}  Ra6 {[%clk 0:00:40]} 39. Rb5+ {[%clk 0:00:40]}  Kc7 {[%clk 0:00:37]} 40. Nd5+ {[%clk 0:00:40]}  Kd6 {[%clk 0:00:35]} 41. Ne3 {[%clk 0:00:40]}  Rc1 {[%clk 0:00:31]} 42. Rd5+ {[%clk 0:00:39]}  Kc7 {[%clk 0:00:30]} 43. Rd2 {[%clk 0:00:37]}  a3 {[%clk 0:00:28]} 44. Ra2 {[%clk 0:00:37]}  Rc3 {[%clk 0:00:17]} 45. Ke2 {[%clk 0:00:36]}  Rb3 {[%clk 0:00:16]} 46. g4 {[%clk 0:00:31]}  Rb2+ {[%clk 0:00:15]} 47. Rxb2 {[%clk 0:00:27]}  axb2 {[%clk 0:00:15]} 48. Nd5+ {[%clk 0:00:26]}  Kd6 {[%clk 0:00:13]} 49. Nc3 {[%clk 0:00:27]}  Ra3 {[%clk 0:00:12]} 50. Nb1 {[%clk 0:00:26]}  Ra1 {[%clk 0:00:12]} 51. Nd2 {[%clk 0:00:26]}  b1=Q {[%clk 0:00:12]} 52. Nxb1 {[%clk 0:00:26]}  Rxb1 {[%clk 0:00:13]} 53. Kf3 {[%clk 0:00:23]}  Rxb4 {[%clk 0:00:12]} 54. Kg3 {[%clk 0:00:24]}  Ke6 {[%clk 0:00:13]} 55. f4 {[%clk 0:00:24]}  Kf6 {[%clk 0:00:13]} 56. h6 {[%clk 0:00:22]}  Kg6 {[%clk 0:00:13]} 57. g5 {[%clk 0:00:22]}  Kf5 {[%clk 0:00:12]} 58. h7 {[%clk 0:00:19]}  Rb8 {[%clk 0:00:12]} 59. Kh4 {[%clk 0:00:19]}  Rh8 {[%clk 0:00:12]} 60. Kg3 {[%clk 0:00:18]}  Rxh7 {[%clk 0:00:12]} 61. g6 {[%clk 0:00:19]}  Kxg6 {[%clk 0:00:13]} 62. Kg4 {[%clk 0:00:20]}  Rf7 {[%clk 0:00:13]} 63. Kh4 {[%clk 0:00:20]}  Kf5 {[%clk 0:00:13]} 64. Kg3 {[%clk 0:00:20]}  Rg7+ {[%clk 0:00:13]} 65. Kf3 {[%clk 0:00:21]}  Rg4 {[%clk 0:00:14]} 66. Ke3 {[%clk 0:00:21]}  Rxf4 {[%clk 0:00:15]} 0-1


[Site "https://www.chess.com"]

[Event "Titled Tuesday Blitz April 18 Early 2023"]
[White "Larina, Maria"]
[Black "Fiorito, Francisco"]
[WhiteFideId "24113182"]
[BlackFideId "180165"]
[WhiteElo "1848"]
[BlackElo "2341"]
[Result "0-1"]
[Round "04"]
[TimeControl "180+2"]
[Date "2023.04.18"]
[WhiteClock "0:00:15"]
[BlackClock "0:01:20"]

1. e4 {[%clk 0:03:00]}  c5 {[%clk 0:02:59]} 2. Nc3 {[%clk 0:02:59]}  Nc6 {[%clk 0:03:00]} 3. g3 {[%clk 0:02:59]}  g6 {[%clk 0:03:00]} 4. Bg2 {[%clk 0:02:59]}  Bg7 {[%clk 0:03:00]} 5. d3 {[%clk 0:03:00]}  d6 {[%clk 0:03:01]} 6. Be3 {[%clk 0:03:00]}  e6 {[%clk 0:03:01]} 7. Qd2 {[%clk 0:02:59]}  Rb8 {[%clk 0:03:01]} 8. f4 {[%clk 0:02:57]}  Nge7 {[%clk 0:02:52]} 9. Nf3 {[%clk 0:02:55]}  b5 {[%clk 0:02:50]} 10. O-O {[%clk 0:02:53]}  b4 {[%clk 0:02:49]} 11. Nd1 {[%clk 0:02:53]}  O-O {[%clk 0:02:47]} 12. c3 {[%clk 0:02:38]}  Ba6 {[%clk 0:02:44]} 13. Re1 {[%clk 0:02:30]}  bxc3 {[%clk 0:02:41]} 14. bxc3 {[%clk 0:02:30]}  Qa5 {[%clk 0:02:41]} 15. g4 {[%clk 0:02:11]}  Rfd8 {[%clk 0:02:23]} 16. f5 {[%clk 0:02:06]}  exf5 {[%clk 0:02:11]} 17. gxf5 {[%clk 0:02:05]}  d5 {[%clk 0:02:05]} 18. Bh6 {[%clk 0:01:50]}  dxe4 {[%clk 0:02:01]} 19. Rxe4 {[%clk 0:01:39]}  Nxf5 {[%clk 0:01:59]} 20. Bxg7 {[%clk 0:01:37]}  Kxg7 {[%clk 0:02:00]} 21. Nf2 {[%clk 0:00:51]}  Qc7 {[%clk 0:01:43]} 22. Ng4 {[%clk 0:00:47]}  Bxd3 {[%clk 0:01:40]} 23. Qe1 {[%clk 0:00:41]}  Bxe4 {[%clk 0:01:36]} 24. Qxe4 {[%clk 0:00:42]}  h5 {[%clk 0:01:29]} 25. Nge5 {[%clk 0:00:33]}  Nxe5 {[%clk 0:01:27]} 26. Nxe5 {[%clk 0:00:33]}  Re8 {[%clk 0:01:26]} 27. Re1 {[%clk 0:00:28]}  f6 {[%clk 0:01:21]} 28. Qf4 {[%clk 0:00:18]}  Rxe5 {[%clk 0:01:19]} 29. Rf1 {[%clk 0:00:15]}  Rbe8 {[%clk 0:01:19]} 30. Bh3 {[%clk 0:00:14]}  R5e7 {[%clk 0:01:18]} 31. Bxf5 {[%clk 0:00:13]}  Qxf4 {[%clk 0:01:18]} 32. Rxf4 {[%clk 0:00:14]}  gxf5 {[%clk 0:01:19]} 33. Rxf5 {[%clk 0:00:15]}  Re1+ {[%clk 0:01:19]} 34. Kf2 {[%clk 0:00:15]}  R8e2+ {[%clk 0:01:20]} 35. Kf3 {[%clk 0:00:15]}  Rf1+ {[%clk 0:01:20]} 0-1


[Site "https://www.chess.com"]